[Event "Titled Tuesday Blitz December 20 Early 2022"]
[White "Abd El Fatah, Reda Fadel"]
[Black "Rud_Makarian"]
[WhiteFideId "10600752"]
[WhiteElo "2134"]
[BlackElo "2889"]
[Result "0-1"]
[Round "06"]
[TimeControl "180+2"]
[Date "2022.12.20"]
[WhiteClock "0:00:09"]
[BlackClock "0:00:19"]

1. e4 {[%clk 0:03:00]}  d6 {[%clk 0:03:00]} 2. d4 {[%clk 0:03:00]}  Nf6 {[%clk 0:03:01]} 3. Bd3 {[%clk 0:03:00]}  e5 {[%clk 0:03:01]} 4. c3 {[%clk 0:03:01]}  Nc6 {[%clk 0:03:00]} 5. Ne2 {[%clk 0:03:00]}  d5 {[%clk 0:02:57]} 6. exd5 {[%clk 0:02:58]}  Qxd5 {[%clk 0:02:53]} 7. O-O {[%clk 0:02:58]}  Be7 {[%clk 0:02:28]} 8. c4 {[%clk 0:02:56]}  Qd8 {[%clk 0:02:28]} 9. d5 {[%clk 0:02:56]}  Nb4 {[%clk 0:02:27]} 10. Ng3 {[%clk 0:02:53]}  O-O {[%clk 0:02:21]} 11. Nc3 {[%clk 0:02:50]}  c6 {[%clk 0:02:14]} 12. Be4 {[%clk 0:02:42]}  cxd5 {[%clk 0:02:12]} 13. cxd5 {[%clk 0:02:41]}  Nxe4 {[%clk 0:02:04]} 14. Ngxe4 {[%clk 0:02:42]}  Bd6 {[%clk 0:01:56]} 15. a3 {[%clk 0:02:37]}  Na6 {[%clk 0:01:56]} 16. Be3 {[%clk 0:02:34]}  Bf5 {[%clk 0:01:53]} 17. Nxd6 {[%clk 0:02:28]}  Qxd6 {[%clk 0:01:51]} 18. Rc1 {[%clk 0:02:29]}  Qd7 {[%clk 0:01:48]} 19. b4 {[%clk 0:02:27]}  Rfd8 {[%clk 0:01:46]} 20. Qb3 {[%clk 0:02:24]}  Nc7 {[%clk 0:01:42]} 21. Rfd1 {[%clk 0:02:21]}  Ne8 {[%clk 0:01:29]} 22. Na4 {[%clk 0:02:16]}  Nd6 {[%clk 0:01:28]} 23. Nc5 {[%clk 0:02:16]}  Qe7 {[%clk 0:01:28]} 24. a4 {[%clk 0:02:11]}  h5 {[%clk 0:01:20]} 25. b5 {[%clk 0:02:02]}  h4 {[%clk 0:01:20]} 26. h3 {[%clk 0:02:01]}  Rac8 {[%clk 0:01:20]} 27. a5 {[%clk 0:01:54]}  Ne4 {[%clk 0:01:03]} 28. Nxe4 {[%clk 0:01:52]}  Rxc1 {[%clk 0:01:04]} 29. Rxc1 {[%clk 0:01:41]}  Bxe4 {[%clk 0:01:04]} 30. Rd1 {[%clk 0:01:19]}  a6 {[%clk 0:00:59]} 31. bxa6 {[%clk 0:01:17]}  bxa6 {[%clk 0:01:00]} 32. f3 {[%clk 0:01:10]}  Bf5 {[%clk 0:00:59]} 33. Qb6 {[%clk 0:01:07]}  Rd6 {[%clk 0:00:44]} 34. Qb8+ {[%clk 0:00:56]}  Rd8 {[%clk 0:00:41]} 35. d6 {[%clk 0:00:40]}  Qd7 {[%clk 0:00:36]} 36. Qb6 {[%clk 0:00:34]}  Rc8 {[%clk 0:00:30]} 37. Qxa6 {[%clk 0:00:33]}  Rc3 {[%clk 0:00:26]} 38. Bf2 {[%clk 0:00:30]}  e4 {[%clk 0:00:22]} 39. Qa8+ {[%clk 0:00:25]}  Kh7 {[%clk 0:00:17]} 40. fxe4 {[%clk 0:00:24]}  Bxh3 {[%clk 0:00:17]} 41. gxh3 {[%clk 0:00:19]}  Rxh3 {[%clk 0:00:18]} 42. e5 {[%clk 0:00:02]}  Ra3 {[%clk 0:00:17]} 43. Qg2 {[%clk 0:00:02]}  h3 {[%clk 0:00:16]} 44. Rd2 {[%clk 0:00:02]}  hxg2 {[%clk 0:00:16]} 45. Kxg2 {[%clk 0:00:03]}  Qc6+ {[%clk 0:00:16]} 46. Kh2 {[%clk 0:00:02]}  Ra1 {[%clk 0:00:16]} 47. d7 {[%clk 0:00:02]}  Qh1+ {[%clk 0:00:15]} 48. Kg3 {[%clk 0:00:03]}  Ra3+ {[%clk 0:00:16]} 49. Kf4 {[%clk 0:00:02]}  Qh2+ {[%clk 0:00:16]} 50. Ke4 {[%clk 0:00:02]}  Qg2+ {[%clk 0:00:16]} 51. Kd4 {[%clk 0:00:02]}  Ra4+ {[%clk 0:00:14]} 52. Kc5 {[%clk 0:00:02]}  Rxa5+ {[%clk 0:00:15]} 53. Kb6 {[%clk 0:00:02]}  Ra8 {[%clk 0:00:15]} 54. d8=Q {[%clk 0:00:02]}  Rxd8 {[%clk 0:00:15]} 55. Rxd8 {[%clk 0:00:02]}  Qxf2+ {[%clk 0:00:15]} 56. Kc7 {[%clk 0:00:03]}  Qf5 {[%clk 0:00:16]} 57. Kd6 {[%clk 0:00:04]}  Qe6+ {[%clk 0:00:16]} 58. Kc7 {[%clk 0:00:03]}  Qxe5+ {[%clk 0:00:17]} 59. Kd7 {[%clk 0:00:04]}  Qd5+ {[%clk 0:00:17]} 60. Ke7 {[%clk 0:00:05]}  Qxd8+ {[%clk 0:00:18]} 61. Kxf7 {[%clk 0:00:05]}  g5 {[%clk 0:00:19]} 62. Ke6 {[%clk 0:00:05]}  g4 {[%clk 0:00:19]} 63. Kf5 {[%clk 0:00:06]}  g3 {[%clk 0:00:20]} 64. Kg4 {[%clk 0:00:07]}  g2 {[%clk 0:00:20]} 65. Kh5 {[%clk 0:00:08]}  Qg8 {[%clk 0:00:18]} 66. Kh4 {[%clk 0:00:08]}  g1=Q {[%clk 0:00:18]} 67. Kh5 {[%clk 0:00:09]}  Qh1# {[%clk 0:00:19]} 0-1


[Site "https://www.chess.com"]

[Event "Titled Tuesday Blitz December 20 Early 2022"]
[White "AldokhinIvan"]
[Black "ChessFanNM"]
[WhiteElo "2572"]
[BlackElo "2395"]
[Result "1/2-1/2"]
[Round "06"]
[TimeControl "180+2"]
[Date "2022.12.20"]
[WhiteClock "0:00:13"]
[BlackClock "0:00:38"]

1. e4 {[%clk 0:02:57]}  c6 {[%clk 0:02:56]} 2. Nc3 {[%clk 0:02:56]}  d5 {[%clk 0:02:56]} 3. d4 {[%clk 0:02:57]}  dxe4 {[%clk 0:02:54]} 4. Nxe4 {[%clk 0:02:58]}  Nf6 {[%clk 0:02:54]} 5. Nxf6+ {[%clk 0:02:58]}  exf6 {[%clk 0:02:55]} 6. c3 {[%clk 0:02:59]}  Bd6 {[%clk 0:02:54]} 7. Bd3 {[%clk 0:03:00]}  Na6 {[%clk 0:02:54]} 8. Ne2 {[%clk 0:03:00]}  Nc7 {[%clk 0:02:53]} 9. Qc2 {[%clk 0:03:01]}  h5 {[%clk 0:02:43]} 10. O-O {[%clk 0:02:57]}  Nd5 {[%clk 0:02:41]} 11. a3 {[%clk 0:02:44]}  O-O {[%clk 0:02:22]} 12. c4 {[%clk 0:02:43]}  Ne7 {[%clk 0:02:19]} 13. Be3 {[%clk 0:02:17]}  a5 {[%clk 0:02:17]} 14. Rad1 {[%clk 0:02:15]}  Re8 {[%clk 0:02:17]} 15. h4 {[%clk 0:01:31]}  Bg4 {[%clk 0:02:16]} 16. f3 {[%clk 0:01:28]}  Bd7 {[%clk 0:02:01]} 17. Nf4 {[%clk 0:01:26]}  Nd5 {[%clk 0:01:35]} 18. Nxd5 {[%clk 0:00:52]}  cxd5 {[%clk 0:01:34]} 19. Bf2 {[%clk 0:00:52]}  dxc4 {[%clk 0:01:28]} 20. Bxc4 {[%clk 0:00:52]}  Rc8 {[%clk 0:01:18]} 21. Qb3 {[%clk 0:00:52]}  Re7 {[%clk 0:01:14]} 22. Rfe1 {[%clk 0:00:45]}  b5 {[%clk 0:01:13]} 23. Bxb5 {[%clk 0:00:32]}  Rb8 {[%clk 0:01:13]} 24. a4 {[%clk 0:00:31]}  Bb4 {[%clk 0:01:12]} 25. Rxe7 {[%clk 0:00:28]}  Bxe7 {[%clk 0:01:08]} 26. d5 {[%clk 0:00:26]}  Bd6 {[%clk 0:01:08]} 27. Qc4 {[%clk 0:00:19]}  Rc8 {[%clk 0:00:57]} 28. Qd3 {[%clk 0:00:19]}  g6 {[%clk 0:00:46]} 29. Re1 {[%clk 0:00:15]}  Kg7 {[%clk 0:00:44]} 30. Rd1 {[%clk 0:00:15]}  Bf5 {[%clk 0:00:44]} 31. Qe2 {[%clk 0:00:13]}  Rc2 {[%clk 0:00:43]} 32. Rd2 {[%clk 0:00:13]}  Rc1+ {[%clk 0:00:40]} 33. Rd1 {[%clk 0:00:13]}  Rc2 {[%clk 0:00:38]} 34. Rd2 {[%clk 0:00:13]}  Rc1+ {[%clk 0:00:38]} 35. Rd1 {[%clk 0:00:13]}  Rc2 {[%clk 0:00:38]} 1/2-1/2


[Site "https://www.chess.com"]

[Event "Titled Tuesday Blitz December 20 Early 2022"]
[White "Alexander_Donchenko"]
[Black "Bensenousi, Isk"]
[BlackFideId "4206010"]
[WhiteElo "2812"]
[BlackElo "2041"]
[Result "1-0"]
[Round "06"]
[TimeControl "180+2"]
[Date "2022.12.20"]
[WhiteClock "0:01:14"]
[BlackClock "0:00:03"]

1. d4 {[%clk 0:03:00]}  Nf6 {[%clk 0:02:58]} 2. Nf3 {[%clk 0:03:01]}  d5 {[%clk 0:02:58]} 3. Bf4 {[%clk 0:03:01]}  e6 {[%clk 0:02:58]} 4. e3 {[%clk 0:03:01]}  Bd6 {[%clk 0:02:57]} 5. Ne5 {[%clk 0:03:02]}  O-O {[%clk 0:02:51]} 6. Nd2 {[%clk 0:03:02]}  Qe7 {[%clk 0:02:37]} 7. Bd3 {[%clk 0:03:01]}  Nc6 {[%clk 0:02:35]} 8. c3 {[%clk 0:03:00]}  Nd7 {[%clk 0:02:31]} 9. Nxc6 {[%clk 0:02:55]}  bxc6 {[%clk 0:02:32]} 10. Bg3 {[%clk 0:02:54]}  e5 {[%clk 0:02:28]} 11. Qc2 {[%clk 0:02:51]}  h6 {[%clk 0:02:21]} 12. O-O-O {[%clk 0:02:49]}  c5 {[%clk 0:02:14]} 13. dxe5 {[%clk 0:02:47]}  Nxe5 {[%clk 0:02:12]} 14. Nf3 {[%clk 0:02:47]}  Nxd3+ {[%clk 0:01:59]} 15. Qxd3 {[%clk 0:02:45]}  Be6 {[%clk 0:01:59]} 16. Kb1 {[%clk 0:02:38]}  a5 {[%clk 0:01:55]} 17. Ka1 {[%clk 0:02:37]}  a4 {[%clk 0:01:53]} 18. a3 {[%clk 0:02:37]}  c4 {[%clk 0:01:47]} 19. Bxd6 {[%clk 0:02:37]}  Qxd6 {[%clk 0:01:47]} 20. Qc2 {[%clk 0:02:32]}  Rfb8 {[%clk 0:01:42]} 21. e4 {[%clk 0:02:32]}  Rb3 {[%clk 0:01:37]} 22. Nd4 {[%clk 0:02:30]}  c5 {[%clk 0:01:17]} 23. Nxb3 {[%clk 0:02:30]}  axb3 {[%clk 0:01:18]} 24. Qc1 {[%clk 0:02:30]}  d4 {[%clk 0:01:18]} 25. f4 {[%clk 0:02:27]}  Bg4 {[%clk 0:01:12]} 26. cxd4 {[%clk 0:02:16]}  cxd4 {[%clk 0:01:06]} 27. Qxc4 {[%clk 0:02:13]}  Bxd1 {[%clk 0:01:02]} 28. Rxd1 {[%clk 0:02:12]}  Rxa3+ {[%clk 0:00:53]} 29. Kb1 {[%clk 0:02:12]}  Ra8 {[%clk 0:00:42]} 30. Qd5 {[%clk 0:02:03]}  Qa6 {[%clk 0:00:40]} 31. Qxb3 {[%clk 0:02:03]}  Qa1+ {[%clk 0:00:22]} 32. Kc2 {[%clk 0:02:03]}  Rc8+ {[%clk 0:00:21]} 33. Kd2 {[%clk 0:02:02]}  Qa5+ {[%clk 0:00:20]} 34. Ke2 {[%clk 0:02:02]}  Qh5+ {[%clk 0:00:19]} 35. Qf3 {[%clk 0:01:58]}  Qb5+ {[%clk 0:00:19]} 36. Qd3 {[%clk 0:01:53]}  Rc2+ {[%clk 0:00:20]} 37. Rd2 {[%clk 0:01:47]}  Rxd2+ {[%clk 0:00:20]} 38. Kxd2 {[%clk 0:01:47]}  Qxb2+ {[%clk 0:00:21]} 39. Qc2 {[%clk 0:01:46]}  Qb4+ {[%clk 0:00:20]} 40. Kd3 {[%clk 0:01:45]}  g6 {[%clk 0:00:15]} 41. g3 {[%clk 0:01:40]}  h5 {[%clk 0:00:09]} 42. f5 {[%clk 0:01:32]}  gxf5 {[%clk 0:00:03]} 43. exf5 {[%clk 0:01:33]}  Qd6 {[%clk 0:00:01]} 44. Qc8+ {[%clk 0:01:28]}  Kg7 {[%clk 0:00:02]} 45. Qc4 {[%clk 0:01:19]}  f6 {[%clk 0:00:02]} 46. Qxd4 {[%clk 0:01:18]}  Qc6 {[%clk 0:00:03]} 47. Qe4 {[%clk 0:01:13]}  Qb5+ {[%clk 0:00:03]} 48. Ke3 {[%clk 0:01:13]}  Qf1 {[%clk 0:00:03]} 49. Qe7+ {[%clk 0:01:13]}  Kg8 {[%clk 0:00:03]} 50. Qe8+ {[%clk 0:01:12]}  Kg7 {[%clk 0:00:03]} 51. Qg6+ {[%clk 0:01:13]}  Kf8 {[%clk 0:00:03]} 52. Qxf6+ {[%clk 0:01:14]}  Kg8 {[%clk 0:00:03]} 53. Qg6+ {[%clk 0:01:14]} 1-0


[Site "https://www.chess.com"]

[Event "Titled Tuesday Blitz December 20 Early 2022"]
[White "Alibaev, Akbar"]
[Black "JaloliddinIlkhomi"]
[WhiteFideId "14200325"]
[WhiteElo "2295"]
[BlackElo "2533"]
[Result "1-0"]
[Round "06"]
[TimeControl "180+2"]
[Date "2022.12.20"]
[WhiteClock "0:01:07"]
[BlackClock "0:00:10"]

1. e4 {[%clk 0:03:00]}  e6 {[%clk 0:02:53]} 2. d4 {[%clk 0:03:00]}  d5 {[%clk 0:02:52]} 3. e5 {[%clk 0:03:00]}  c5 {[%clk 0:02:51]} 4. c3 {[%clk 0:03:01]}  Nc6 {[%clk 0:02:44]} 5. Nf3 {[%clk 0:02:59]}  Bd7 {[%clk 0:02:44]} 6. Be2 {[%clk 0:02:53]}  Rc8 {[%clk 0:02:36]} 7. O-O {[%clk 0:02:53]}  cxd4 {[%clk 0:02:19]} 8. cxd4 {[%clk 0:02:52]}  Nge7 {[%clk 0:02:20]} 9. Nc3 {[%clk 0:02:43]}  a6 {[%clk 0:02:13]} 10. Bd3 {[%clk 0:02:41]}  Ng6 {[%clk 0:02:02]} 11. g3 {[%clk 0:02:38]}  Nge7 {[%clk 0:01:55]} 12. h4 {[%clk 0:02:36]}  b5 {[%clk 0:01:44]} 13. h5 {[%clk 0:02:24]}  h6 {[%clk 0:01:38]} 14. Kg2 {[%clk 0:02:15]}  Qb6 {[%clk 0:01:34]} 15. Be3 {[%clk 0:02:14]}  Qb7 {[%clk 0:01:15]} 16. Rc1 {[%clk 0:02:05]}  Na5 {[%clk 0:00:57]} 17. b3 {[%clk 0:01:51]}  Nf5 {[%clk 0:00:44]} 18. Bd2 {[%clk 0:01:43]}  Bb4 {[%clk 0:00:24]} 19. Ne2 {[%clk 0:01:24]}  Bxd2 {[%clk 0:00:21]} 20. Qxd2 {[%clk 0:01:25]}  Nc6 {[%clk 0:00:21]} 21. Rc5 {[%clk 0:01:17]}  Qb6 {[%clk 0:00:19]} 22. Rfc1 {[%clk 0:01:16]}  Nce7 {[%clk 0:00:19]} 23. g4 {[%clk 0:01:15]}  Rxc5 {[%clk 0:00:13]} 24. dxc5 {[%clk 0:01:14]}  Qc7 {[%clk 0:00:14]} 25. gxf5 {[%clk 0:01:14]}  Nxf5 {[%clk 0:00:15]} 26. Bxf5 {[%clk 0:01:14]}  exf5 {[%clk 0:00:14]} 27. Nf4 {[%clk 0:01:14]}  O-O {[%clk 0:00:13]} 28. Nxd5 {[%clk 0:01:10]}  Qb7 {[%clk 0:00:12]} 29. c6 {[%clk 0:01:08]}  Bxc6 {[%clk 0:00:09]} 30. Rxc6 {[%clk 0:01:07]}  Rd8 {[%clk 0:00:10]} 31. Rd6 {[%clk 0:01:07]} 1-0


[Site "https://www.chess.com"]

[Event "Titled Tuesday Blitz December 20 Early 2022"]
[White "AnaKuchava"]
[Black "Zozik, S. Mohammed"]
[BlackFideId "4803280"]
[WhiteElo "2212"]
[BlackElo "2116"]
[Result "1-0"]
[Round "06"]
[TimeControl "180+2"]
[Date "2022.12.20"]
[WhiteClock "0:00:16"]
[BlackClock "0:00:14"]

1. d4 {[%clk 0:03:00]}  d5 {[%clk 0:02:59]} 2. Nf3 {[%clk 0:02:53]}  c6 {[%clk 0:02:58]} 3. c4 {[%clk 0:02:51]}  Nf6 {[%clk 0:02:58]} 4. Qb3 {[%clk 0:02:44]}  e6 {[%clk 0:02:54]} 5. Bg5 {[%clk 0:02:40]}  Nbd7 {[%clk 0:02:54]} 6. e3 {[%clk 0:02:37]}  Qb6 {[%clk 0:02:53]} 7. c5 {[%clk 0:02:22]}  Qd8 {[%clk 0:02:47]} 8. Nc3 {[%clk 0:02:19]}  b6 {[%clk 0:02:44]} 9. Qa4 {[%clk 0:02:09]}  Bb7 {[%clk 0:02:39]} 10. b4 {[%clk 0:02:07]}  b5 {[%clk 0:02:33]} 11. Qb3 {[%clk 0:02:04]}  Be7 {[%clk 0:02:31]} 12. Bd3 {[%clk 0:02:03]}  a5 {[%clk 0:02:29]} 13. O-O {[%clk 0:02:03]}  axb4 {[%clk 0:02:29]} 14. Qxb4 {[%clk 0:02:03]}  Qa5 {[%clk 0:02:29]} 15. Qxa5 {[%clk 0:01:58]}  Rxa5 {[%clk 0:02:30]} 16. Rfb1 {[%clk 0:01:54]}  O-O {[%clk 0:02:30]} 17. a4 {[%clk 0:01:53]}  Rfa8 {[%clk 0:02:28]} 18. Nd2 {[%clk 0:01:42]}  Bc8 {[%clk 0:02:20]} 19. Nb3 {[%clk 0:01:39]}  R5a7 {[%clk 0:02:03]} 20. axb5 {[%clk 0:01:38]}  Rxa1 {[%clk 0:02:04]} 21. Rxa1 {[%clk 0:01:39]}  Rxa1+ {[%clk 0:02:04]} 22. Nxa1 {[%clk 0:01:40]}  cxb5 {[%clk 0:02:04]} 23. Bxb5 {[%clk 0:01:32]}  h6 {[%clk 0:02:04]} 24. Bf4 {[%clk 0:01:28]}  g5 {[%clk 0:02:03]} 25. Bg3 {[%clk 0:01:23]}  Nh5 {[%clk 0:02:00]} 26. Bc7 {[%clk 0:01:22]}  f5 {[%clk 0:01:57]} 27. f3 {[%clk 0:01:21]}  Kf7 {[%clk 0:01:57]} 28. Nb3 {[%clk 0:01:16]}  Nhf6 {[%clk 0:01:51]} 29. c6 {[%clk 0:01:01]}  Nf8 {[%clk 0:01:46]} 30. Na4 {[%clk 0:00:54]}  Ne8 {[%clk 0:01:45]} 31. Bb8 {[%clk 0:00:51]}  Bd6 {[%clk 0:01:41]} 32. Ba7 {[%clk 0:00:36]}  Nc7 {[%clk 0:01:36]} 33. Bd3 {[%clk 0:00:35]}  Ke7 {[%clk 0:01:29]} 34. Nb6 {[%clk 0:00:33]}  Kd8 {[%clk 0:01:30]} 35. Na5 {[%clk 0:00:28]}  Ba6 {[%clk 0:01:16]} 36. Nb7+ {[%clk 0:00:27]}  Ke7 {[%clk 0:01:10]} 37. Nc8+ {[%clk 0:00:22]}  Kf6 {[%clk 0:01:06]} 38. Bxa6 {[%clk 0:00:22]}  Nxa6 {[%clk 0:01:05]} 39. Ncxd6 {[%clk 0:00:20]}  Ke7 {[%clk 0:00:48]} 40. Nb5 {[%clk 0:00:18]}  Nd7 {[%clk 0:00:23]} 41. c7 {[%clk 0:00:15]}  Nxc7 {[%clk 0:00:14]} 42. Nxc7 {[%clk 0:00:16]} 1-0


[Site "https://www.chess.com"]

[Event "Titled Tuesday Blitz December 20 Early 2022"]
[White "Andrii_Prydun"]
[Black "lemayvega"]
[WhiteElo "2387"]
[BlackElo "2529"]
[Result "1-0"]
[Round "06"]
[TimeControl "180+2"]
[Date "2022.12.20"]
[WhiteClock "0:00:11"]
[BlackClock "0:00:10"]

1. e4 {[%clk 0:01:39]}  c5 {[%clk 0:02:56]} 2. Nf3 {[%clk 0:01:38]}  Nc6 {[%clk 0:02:53]} 3. g3 {[%clk 0:01:36]}  g6 {[%clk 0:02:53]} 4. Bg2 {[%clk 0:01:35]}  Bg7 {[%clk 0:02:51]} 5. O-O {[%clk 0:01:36]}  d6 {[%clk 0:02:50]} 6. c4 {[%clk 0:01:35]}  Nf6 {[%clk 0:02:47]} 7. Nc3 {[%clk 0:01:36]}  Bg4 {[%clk 0:02:44]} 8. d3 {[%clk 0:01:35]}  Qd7 {[%clk 0:02:43]} 9. Be3 {[%clk 0:01:32]}  O-O {[%clk 0:02:42]} 10. Qd2 {[%clk 0:01:31]}  Rfb8 {[%clk 0:02:31]} 11. a4 {[%clk 0:01:29]}  b6 {[%clk 0:02:22]} 12. Ng5 {[%clk 0:01:18]}  Qc8 {[%clk 0:02:16]} 13. h3 {[%clk 0:01:15]}  Bd7 {[%clk 0:02:15]} 14. Kh2 {[%clk 0:01:14]}  a6 {[%clk 0:02:14]} 15. f4 {[%clk 0:01:13]}  Nd4 {[%clk 0:02:10]} 16. Bxd4 {[%clk 0:01:10]}  cxd4 {[%clk 0:02:11]} 17. Ne2 {[%clk 0:01:11]}  b5 {[%clk 0:01:45]} 18. axb5 {[%clk 0:01:09]}  axb5 {[%clk 0:01:43]} 19. b3 {[%clk 0:01:09]}  Rxa1 {[%clk 0:01:41]} 20. Rxa1 {[%clk 0:01:09]}  bxc4 {[%clk 0:01:42]} 21. bxc4 {[%clk 0:01:08]}  Ne8 {[%clk 0:01:32]} 22. Nf3 {[%clk 0:01:06]}  e5 {[%clk 0:01:24]} 23. Qc2 {[%clk 0:00:57]}  Nc7 {[%clk 0:01:22]} 24. Rb1 {[%clk 0:00:57]}  Ne6 {[%clk 0:01:20]} 25. f5 {[%clk 0:00:53]}  Nc5 {[%clk 0:01:18]} 26. g4 {[%clk 0:00:50]}  Rxb1 {[%clk 0:01:07]} 27. Qxb1 {[%clk 0:00:51]}  Qa8 {[%clk 0:01:07]} 28. Ng3 {[%clk 0:00:39]}  Qa3 {[%clk 0:01:00]} 29. Bf1 {[%clk 0:00:38]}  Qb3 {[%clk 0:00:56]} 30. Qxb3 {[%clk 0:00:35]}  Nxb3 {[%clk 0:00:57]} 31. g5 {[%clk 0:00:34]}  h6 {[%clk 0:00:53]} 32. f6 {[%clk 0:00:34]}  Bf8 {[%clk 0:00:53]} 33. h4 {[%clk 0:00:34]}  Nc5 {[%clk 0:00:52]} 34. Kg2 {[%clk 0:00:31]}  Ba4 {[%clk 0:00:52]} 35. Kf2 {[%clk 0:00:31]}  Bc2 {[%clk 0:00:52]} 36. Ne1 {[%clk 0:00:30]}  Bb1 {[%clk 0:00:52]} 37. Ke2 {[%clk 0:00:26]}  hxg5 {[%clk 0:00:52]} 38. hxg5 {[%clk 0:00:25]}  Ne6 {[%clk 0:00:52]} 39. Nf3 {[%clk 0:00:22]}  Nf4+ {[%clk 0:00:52]} 40. Kd2 {[%clk 0:00:22]}  Kh7 {[%clk 0:00:45]} 41. Nh1 {[%clk 0:00:20]}  Kg8 {[%clk 0:00:35]} 42. Nf2 {[%clk 0:00:21]}  Kh7 {[%clk 0:00:35]} 43. Kc1 {[%clk 0:00:20]}  Bxd3 {[%clk 0:00:29]} 44. Bxd3 {[%clk 0:00:19]}  Kg8 {[%clk 0:00:27]} 45. Kd2 {[%clk 0:00:19]}  Kh7 {[%clk 0:00:27]} 46. Bc2 {[%clk 0:00:19]}  Kg8 {[%clk 0:00:26]} 47. Nd3 {[%clk 0:00:19]}  Ng2 {[%clk 0:00:25]} 48. Nb4 {[%clk 0:00:19]}  Ne3 {[%clk 0:00:24]} 49. Nd5 {[%clk 0:00:19]}  Nxc4+ {[%clk 0:00:24]} 50. Ke2 {[%clk 0:00:20]}  Ne3 {[%clk 0:00:24]} 51. Bb3 {[%clk 0:00:20]}  Nxd5 {[%clk 0:00:22]} 52. Bxd5 {[%clk 0:00:19]}  Kh7 {[%clk 0:00:23]} 53. Bxf7 {[%clk 0:00:18]}  d5 {[%clk 0:00:22]} 54. Bxd5 {[%clk 0:00:19]}  Bd6 {[%clk 0:00:22]} 55. Kd3 {[%clk 0:00:19]}  Kh8 {[%clk 0:00:22]} 56. Bb3 {[%clk 0:00:19]}  Kh7 {[%clk 0:00:22]} 57. Bc4 {[%clk 0:00:19]}  Kh8 {[%clk 0:00:22]} 58. Kc2 {[%clk 0:00:19]}  Kh7 {[%clk 0:00:18]} 59. Ne1 {[%clk 0:00:19]}  Bb4 {[%clk 0:00:17]} 60. Nd3 {[%clk 0:00:19]}  Bd6 {[%clk 0:00:18]} 61. Kb3 {[%clk 0:00:20]}  Kh8 {[%clk 0:00:18]} 62. Ka4 {[%clk 0:00:20]}  Kh7 {[%clk 0:00:18]} 63. Kb5 {[%clk 0:00:20]}  Kh8 {[%clk 0:00:18]} 64. Kc6 {[%clk 0:00:20]}  Bb8 {[%clk 0:00:19]} 65. Kd7 {[%clk 0:00:20]}  Kh7 {[%clk 0:00:19]} 66. Ke8 {[%clk 0:00:21]}  Bd6 {[%clk 0:00:19]} 67. f7 {[%clk 0:00:20]}  Kg7 {[%clk 0:00:20]} 68. f8=Q+ {[%clk 0:00:21]}  Bxf8 {[%clk 0:00:20]} 69. Nxe5 {[%clk 0:00:20]}  Bb4 {[%clk 0:00:20]} 70. Nd3 {[%clk 0:00:21]}  Bd2 {[%clk 0:00:20]} 71. Nc5 {[%clk 0:00:11]}  Bxg5 {[%clk 0:00:21]} 72. Ne6+ {[%clk 0:00:11]}  Kf6 {[%clk 0:00:21]} 73. Nxg5 {[%clk 0:00:06]}  Kxg5 {[%clk 0:00:22]} 74. e5 {[%clk 0:00:07]}  Kf5 {[%clk 0:00:18]} 75. e6 {[%clk 0:00:07]}  d3 {[%clk 0:00:17]} 76. e7 {[%clk 0:00:06]}  d2 {[%clk 0:00:18]} 77. Bb3 {[%clk 0:00:06]}  g5 {[%clk 0:00:15]} 78. Kf8 {[%clk 0:00:06]}  g4 {[%clk 0:00:16]} 79. e8=Q {[%clk 0:00:07]}  Kf4 {[%clk 0:00:16]} 80. Qe2 {[%clk 0:00:07]}  g3 {[%clk 0:00:17]} 81. Bd5 {[%clk 0:00:06]}  g2 {[%clk 0:00:15]} 82. Qxd2+ {[%clk 0:00:06]}  Kg3 {[%clk 0:00:16]} 83. Qxg2+ {[%clk 0:00:07]}  Kf4 {[%clk 0:00:15]} 84. Ke7 {[%clk 0:00:07]}  Ke5 {[%clk 0:00:15]} 85. Qg4 {[%clk 0:00:07]}  Kxd5 {[%clk 0:00:15]} 86. Qf4 {[%clk 0:00:08]}  Kc5 {[%clk 0:00:16]} 87. Qe4 {[%clk 0:00:08]}  Kb6 {[%clk 0:00:16]} 88. Qd5 {[%clk 0:00:08]}  Kc7 {[%clk 0:00:16]} 89. Qd6+ {[%clk 0:00:09]}  Kb7 {[%clk 0:00:16]} 90. Qc5 {[%clk 0:00:09]}  Ka6 {[%clk 0:00:16]} 91. Qb4 {[%clk 0:00:09]}  Ka7 {[%clk 0:00:16]} 92. Qb5 {[%clk 0:00:10]}  Ka8 {[%clk 0:00:17]} 93. Kd7 {[%clk 0:00:10]}  Ka7 {[%clk 0:00:10]} 94. Kc7 {[%clk 0:00:11]}  Ka8 {[%clk 0:00:10]} 95. Qa5# {[%clk 0:00:11]} 1-0


[Site "https://www.chess.com"]